fUST/lending_fUST_20240802
["ID","MTS","AMOUNT","RATE_DAILY","PERIOD"]
[333819447,1722528653937,-500.0,0.00016986,2]
[333819448,1722528653947,-500.0,0.00016986,2]
[333819449,1722528653957,-838.19,0.00016986,2]
[333819450,1722528653966,-561.83,0.00016986,2]
[333819451,1722528653975,-874.15,0.00016986,2]
[333819452,1722528653985,-538.3,0.00016986,2]
[333819453,1722528653994,-2132.52,0.00016986,2]
[333819454,1722528654086,-1895.04,0.00016986,2]
[333819455,1722528654096,-500.0,0.00016986,2]
[333819456,1722528654105,-500.0,0.00016986,2]
[333819457,1722528654115,-500.0,0.00016986,2]
[333819458,1722528654125,-500.0,0.00016986,2]
[333819459,1722528654140,-2759.59,0.00016986,2]
[333819460,1722528654150,-500.0,0.00016986,2]
[333819461,1722528654160,-686.04,0.00016986,2]
[333819462,1722528654171,-785.38,0.00016986,2]
[333819463,1722528654180,-500.0,0.00016986,2]
[333819464,1722528654189,-815.61,0.00016986,2]
[333819465,1722528654199,-500.0,0.00016986,2]
[333819466,1722528654212,-812.04,0.00016986,2]
[333819467,1722528654223,-2585.36,0.00016986,2]
[333819468,1722528654235,-547.45,0.00016986,2]
[333819469,1722528654245,-500.0,0.00016986,2]
[333819470,1722528654255,-500.0,0.00016986,2]
[333819471,1722528654269,-652.72,0.00016986,2]
[333819472,1722528654279,-1517.4,0.00016986,2]
[333819473,1722528654288,-862.86,0.00016986,2]
[333819474,1722528654298,-500.0,0.00016986,2]
[333819475,1722528654311,-500.0,0.00016986,2]
[333819476,1722528654320,-500.0,0.00016986,2]
[333819477,1722528654329,-500.0,0.00016986,2]
[333819478,1722528654338,-500.0,0.00016986,2]
[333819479,1722528654348,-500.0,0.00016986,2]
[333819480,1722528654358,-500.0,0.00016986,2]
[333819481,1722528654367,-500.0,0.00016986,2]
[333819482,1722528654376,-700.06,0.00016986,2]
[333819483,1722528654385,-500.0,0.00016986,2]
[333819484,1722528654395,-500.0,0.00016986,2]
[333819485,1722528654405,-548.51,0.00016986,2]
[333819486,1722528654415,-612.69,0.00016986,2]
[333819487,1722528654425,-500.0,0.00016986,2]
[333819488,1722528654435,-154.75583861,0.00017,2]
[333819489,1722528654445,-1000.0,0.00017,2]
[333819490,1722528654455,-254.3,0.00017112,2]
[333819491,1722528654465,-288.920834,0.00017238,2]
[333819492,1722528654475,-210.494126,0.00017238,2]
[333819493,1722528654484,-210.494126,0.00017238,2]
[333819494,1722528654493,-192.613889,0.00017238,2]
[333819495,1722528654503,-185.655163,0.00017238,2]
[333819496,1722528654518,-155.546307,0.00017238,2]
[333819497,1722528654528,-500.0,0.0001726,2]
[333819498,1722528654538,-500.0,0.0001726,2]
[333819499,1722528654548,-500.0,0.0001726,2]
[333819500,1722528654557,-500.0,0.0001726,2]
[333819501,1722528654566,-610.09593164,0.0001726,2]
[333819502,1722528654576,-550.1,0.0001726,2]
[333819503,1722528654586,-500.0,0.0001726,2]
[333819504,1722528654596,-500.0,0.0001726,2]
[333819505,1722528654607,-500.0,0.0001726,2]
[333819506,1722528654616,-838.19,0.0001726,2]
[333819507,1722528654626,-561.83,0.0001726,2]
[333819508,1722528654636,-874.15,0.0001726,2]
[333819509,1722528654646,-538.3,0.0001726,2]
[333819510,1722528654655,-2132.52,0.0001726,2]
[333819511,1722528654665,-1895.04,0.0001726,2]
[333819512,1722528654674,-547.12443555,0.0001726,2]
[333819513,1722528654683,-547.94,0.0001726,2]
[333819514,1722528654693,-500.0,0.0001726,2]
[333819515,1722528654702,-2759.59,0.0001726,2]
[333819516,1722528654712,-500.0,0.0001726,2]
[333819517,1722528654722,-686.04,0.0001726,2]
[333819518,1722528654731,-500.0,0.0001726,2]
[333819519,1722528654741,-785.38,0.0001726,2]
[333819520,1722528654750,-500.0,0.0001726,2]
[333819521,1722528654765,-815.61,0.0001726,2]
[333819522,1722528654775,-500.0,0.0001726,2]
[333819523,1722528654784,-812.04,0.0001726,2]
[333819524,1722528654793,-2585.36,0.0001726,2]
[333819525,1722528654802,-547.45,0.0001726,2]
[333819526,1722528654812,-500.0,0.0001726,2]
[333819527,1722528654822,-500.0,0.0001726,2]
[333819528,1722528654832,-652.72,0.0001726,2]
[333819529,1722528654842,-1517.4,0.0001726,2]
[333819530,1722528654852,-862.86,0.0001726,2]
[333819531,1722528654861,-500.0,0.0001726,2]
[333819532,1722528654871,-256.788788,0.0001726,2]
[333819533,1722528654880,-256.788788,0.0001726,2]
[333819534,1722528654889,-500.0,0.0001726,2]
[333819535,1722528654898,-500.0,0.0001726,2]
[333819536,1722528654908,-151.0,0.0001726,2]
[333819537,1722528654917,-342.61,0.0001726,2]
[333819538,1722528654927,-151.0,0.0001726,2]
[333819539,1722528654937,-500.0,0.0001726,2]
[333819540,1722528654946,-500.0,0.0001726,2]
[333819541,1722528654956,-358.934766,0.0001726,2]
[333819542,1722528654966,-500.0,0.0001726,2]
[333819543,1722528654976,-358.934766,0.0001726,2]
[333819544,1722528654985,-151.0,0.0001726,2]
[333819545,1722528654995,-151.0,0.0001726,2]
[333819546,1722528655004,-500.0,0.0001726,2]
[333819547,1722528655017,-700.06,0.0001726,2]
[333819548,1722528655026,-500.0,0.0001726,2]
[333819549,1722528655034,-288.36,0.0001726,2]
[333819550,1722528655044,-548.51,0.0001726,2]
[333819551,1722528655053,-612.69,0.0001726,2]
[333819552,1722528655065,-500.0,0.0001726,2]
[333819553,1722528655074,-41903.0782162,0.00017379,2]
[333819554,1722528655084,-153.0,0.00017425,2]
[333819555,1722528655095,-153.0,0.00017425,2]
[333819556,1722528655104,-295.3057892,0.00017425,2]
[333819557,1722528655114,-1000.0,0.000175,2]
[333819558,1722528655123,-500.0,0.00017534,2]
[333819559,1722528655135,-500.0,0.00017534,2]
[333819560,1722528655151,-500.0,0.00017534,2]
[333819561,1722528655161,-221.79482121,0.00017534,2]
[333819562,1722528655171,-550.1,0.00017534,2]
[333819563,1722528655183,-500.0,0.00017534,2]
[333819564,1722528655193,-500.0,0.00017534,2]
[333819565,1722528655205,-500.0,0.00017534,2]
[333819566,1722528655215,-838.19,0.00017534,2]
[333819567,1722528655225,-561.83,0.00017534,2]
[333819568,1722528655234,-874.15,0.00017534,2]
[333819569,1722528655244,-538.3,0.00017534,2]
[333819570,1722528655253,-2132.52,0.00017534,2]
[333819571,1722528655268,-1895.04,0.00017534,2]
[333819572,1722528655277,-500.0,0.00017534,2]
[333819573,1722528655287,-2759.59,0.00017534,2]
[333819574,1722528655296,-500.0,0.00017534,2]
[333819575,1722528655306,-686.04,0.00017534,2]
[333819576,1722528655316,-500.0,0.00017534,2]
[333819577,1722528655325,-785.38,0.00017534,2]
[333819578,1722528655335,-332.03479,0.00017534,2]
[333819579,1722528655344,-332.03479,0.00017534,2]
[333819580,1722528655353,-500.0,0.00017534,2]
[333819581,1722528655362,-151.0,0.00017534,2]
[333819582,1722528655372,-815.61,0.00017534,2]
[333819583,1722528655381,-500.0,0.00017534,2]
[333819584,1722528655390,-812.04,0.00017534,2]
[333819585,1722528655399,-2585.36,0.00017534,2]
[333819586,1722528655409,-151.237157,0.00017534,2]
[333819587,1722528655418,-547.45,0.00017534,2]
[333819588,1722528655428,-500.0,0.00017534,2]
[333819589,1722528655438,-500.0,0.00017534,2]
[333819590,1722528655447,-151.0,0.00017534,2]
[333819591,1722528655457,-652.72,0.00017534,2]
[333819592,1722528655466,-1517.4,0.00017534,2]
[333819593,1722528655475,-862.86,0.00017534,2]
[333819594,1722528655485,-500.0,0.00017534,2]
[333819595,1722528655494,-500.0,0.00017534,2]
[333819596,1722528655503,-275.69959367,0.00017534,2]
[333819597,1722528655517,-500.0,0.00017534,2]
[333819598,1722528655526,-500.0,0.00017534,2]
[333819599,1722528655536,-500.0,0.00017534,2]
[333819600,1722528655545,-500.0,0.00017534,2]
[333819601,1722528655555,-700.06,0.00017534,2]
[333819602,1722528655564,-571.58289627,0.00017534,2]
[333819603,1722528655574,-548.51,0.00017534,2]
[333819604,1722528655585,-612.69,0.00017534,2]
[333819605,1722528655594,-500.0,0.00017534,2]
[333819606,1722528655604,-206.9081725,0.00017534,2]
[333819607,1722528655614,-206.9081725,0.00017534,2]
[333819608,1722528655624,-5194.90702789,0.00017634,2]
[333819609,1722528655633,-258.30892163,0.00017648,2]
[333819610,1722528655643,-192.613889,0.00017669,2]
[333819611,1722528655652,-185.655163,0.00017669,2]
[333819612,1722528655662,-155.546307,0.00017669,2]
[333819613,1722528655671,-362.70643924,0.0001774,2]
[333819614,1722528655681,-254.3,0.00017786,2]
[333819615,1722528655690,-344.91495569,0.00017808,2]
[333819616,1722528655700,-500.0,0.00017808,2]
[333819617,1722528655709,-500.0,0.00017808,2]
[333819618,1722528655719,-550.1,0.00017808,2]
[333819619,1722528655729,-500.0,0.00017808,2]
[333819620,1722528655739,-500.0,0.00017808,2]
[333819621,1722528655748,-500.0,0.00017808,2]
[333819622,1722528655758,-838.19,0.00017808,2]
[333819623,1722528655769,-561.83,0.00017808,2]
[333819624,1722528655779,-874.15,0.00017808,2]
[333819625,1722528655788,-538.3,0.00017808,2]
[333819626,1722528655797,-2132.52,0.00017808,2]
[333819627,1722528655807,-1895.04,0.00017808,2]
[333819628,1722528655816,-500.0,0.00017808,2]
[333819629,1722528655826,-1029.18141814,0.00017808,2]
[333819630,1722528658083,273.37336231,9.9e-05,2]
[333819631,1722528666942,273.37336231,9.9e-05,2]
[333819635,1722528675100,273.37336231,9.9e-05,2]
[333819636,1722528683071,273.37336231,9.9e-05,2]
[333819637,1722528691151,273.37336231,9.9e-05,2]
[333819638,1722528692794,188.23431458,9.999e-05,2]
[333819639,1722528699617,273.37336231,9.9e-05,2]
[333819640,1722528702473,248.10858539,9.999e-05,2]
[333819641,1722528705305,155.08928424,9.999e-05,2]
[333819642,1722528705948,154.97094893,9.999e-05,2]
[333819643,1722528708330,273.37336231,9.9e-05,2]
[333819644,1722528709620,155.84308798,9.999e-05,2]
[333819645,1722528711498,599.65130289,9.999e-05,2]
[333819646,1722528715201,426.79757153,9.999e-05,2]
[333819647,1722528715553,850.00911267,9.999e-05,2]
[333819648,1722528716285,273.37336231,9.9e-05,2]
[333819649,1722528716700,434.6287768,9.999e-05,2]
[333819650,1722528716763,154.7827131,9.999e-05,2]
[333819651,1722528717846,248.95807837,9.999e-05,2]
[333819652,1722528718136,544.21012066,9.999e-05,2]
[333819653,1722528718457,555.66677916,9.999e-05,2]
[333819654,1722528723873,515.14154961,9.999e-05,2]
[333819655,1722528724757,273.37336231,9.9e-05,2]
[333819656,1722528729762,154.7853179,9.999e-05,2]
[333819657,1722528730196,506.36364634,9.999e-05,2]
[333819658,1722528732618,273.37336231,9.9e-05,2]
[333819659,1722528732736,506.36364634,9.999e-05,2]
[333819660,1722528732771,215.71499893,9.999e-05,2]
[333819661,1722528733386,154.75149571,9.999e-05,2]
[333819662,1722528740707,273.37336231,9.9e-05,2]
[333819663,1722528741597,154.7673313,9.999e-05,2]
[333819665,1722528743776,209.34683368,9.999e-05,2]
[333819666,1722528748600,273.37336231,9.9e-05,2]
[333819667,1722528758297,273.37336231,9.9e-05,2]
[333819668,1722528765649,273.37336231,9.9e-05,2]
[333819669,1722528773783,273.37336231,9.9e-05,2]
[333819671,1722528781674,273.37336231,9.9e-05,2]
[333819672,1722528790050,273.37336231,9.9e-05,2]
[333819674,1722528797830,273.37336231,9.9e-05,2]
[333819677,1722528806518,273.37336231,9.9e-05,2]
[333819678,1722528814421,273.37336231,9.9e-05,2]
[333819679,1722528815219,426.79757153,9.999e-05,2]
[333819680,1722528822724,273.37336231,9.9e-05,2]
[333819681,1722528830639,273.37336231,9.9e-05,2]
[333819682,1722528839643,273.37336231,9.9e-05,2]
[333819683,1722528843247,506.36364634,9.999e-05,2]
[333819684,1722528847578,273.37336231,9.9e-05,2]
[333819685,1722528856020,273.37336231,9.9e-05,2]
[333819686,1722528864402,273.37336231,9.9e-05,2]
[333819687,1722528872499,273.37336231,9.9e-05,2]
[333819688,1722528880414,273.37336231,9.9e-05,2]
[333819689,1722528888663,273.37336231,9.9e-05,2]
[333819690,1722528896559,273.37336231,9.9e-05,2]
[333819691,1722528903746,165.66481459,9.999e-05,2]
[333819692,1722528904649,273.37336231,9.9e-05,2]
[333819693,1722528912593,273.37336231,9.9e-05,2]
[333819694,1722528920724,273.37336231,9.9e-05,2]
[333819695,1722528929106,273.37336231,9.9e-05,2]
[333819696,1722528937834,273.37336231,9.9e-05,2]
[333819697,1722528946305,273.37336231,9.9e-05,2]
[333819698,1722528954413,273.37336231,9.9e-05,2]
[333819699,1722528963117,273.37336231,9.9e-05,2]
[333819700,1722528966698,506.36364634,9.999e-05,2]
[333819701,1722528972059,273.37336231,9.9e-05,2]
[333819702,1722528979192,506.36364634,9.999e-05,2]
[333819703,1722528980048,273.37336231,9.9e-05,2]
[333819704,1722528988897,273.37336231,9.9e-05,2]
[333819707,1722528996711,273.37336231,9.9e-05,2]
[333819714,1722529004867,273.37336231,9.9e-05,2]
[333819715,1722529012754,273.37336231,9.9e-05,2]
[333819717,1722529020944,273.37336231,9.9e-05,2]
[333819718,1722529028938,273.37336231,9.9e-05,2]
[333819719,1722529037059,273.37336231,9.9e-05,2]
[333819720,1722529044998,273.37336231,9.9e-05,2]
[333819721,1722529054113,273.37336231,9.9e-05,2]
[333819722,1722529062878,273.37336231,9.9e-05,2]
[333819723,1722529071013,273.37336231,9.9e-05,2]
[333819724,1722529078916,273.37336231,9.9e-05,2]
[333819725,1722529087184,273.37336231,9.9e-05,2]
[333819726,1722529095616,273.37336231,9.9e-05,2]
[333819727,1722529097215,506.36364634,9.999e-05,2]
[333819728,1722529103750,273.37336231,9.9e-05,2]
[333819729,1722529111711,273.37336231,9.9e-05,2]
[333819730,1722529119834,273.37336231,9.9e-05,2]
[333819731,1722529128571,273.37336231,9.9e-05,2]
[333819732,1722529136725,273.37336231,9.9e-05,2]
[333819733,1722529144601,273.37336231,9.9e-05,2]
[333819734,1722529152667,273.37336231,9.9e-05,2]
[333819737,1722529161180,273.37336231,9.9e-05,2]
[333819747,1722529169250,273.37336231,9.9e-05,2]
[333819748,1722529178509,273.37336231,9.9e-05,2]
[333819749,1722529187719,273.37336231,9.9e-05,2]
[333819750,1722529196698,273.37336231,9.9e-05,2]
[333819751,1722529205045,273.37336231,9.9e-05,2]
[333819752,1722529212895,273.37336231,9.9e-05,2]
[333819753,1722529221599,273.37336231,9.9e-05,2]
[333819754,1722529229464,273.37336231,9.9e-05,2]
[333819755,1722529239117,273.37336231,9.9e-05,2]
[333819756,1722529246977,273.37336231,9.9e-05,2]
[333819757,1722529255051,273.37336231,9.9e-05,2]
[333819759,1722529262987,273.37336231,9.9e-05,2]
[333819760,1722529271892,273.37336231,9.9e-05,2]
[333819761,1722529280590,273.37336231,9.9e-05,2]
[333819762,1722529289555,273.37336231,9.9e-05,2]
[333819763,1722529298597,273.37336231,9.9e-05,2]
[333819764,1722529308078,273.37336231,9.9e-05,2]
[333819765,1722529316575,273.37336231,9.9e-05,2]
[333819766,1722529324731,273.37336231,9.9e-05,2]
[333819767,1722529332579,273.37336231,9.9e-05,2]
[333819768,1722529340624,273.37336231,9.9e-05,2]
[333819769,1722529348497,273.37336231,9.9e-05,2]
[333819770,1722529356767,273.37336231,9.9e-05,2]
[333819771,1722529364658,273.37336231,9.9e-05,2]
[333819772,1722529372731,273.37336231,9.9e-05,2]
[333819773,1722529380798,273.37336231,9.9e-05,2]
[333819774,1722529389138,273.37336231,9.9e-05,2]
[333819775,1722529396995,273.37336231,9.9e-05,2]
[333819776,1722529405675,273.37336231,9.9e-05,2]
[333819777,1722529414170,273.37336231,9.9e-05,2]
[333819778,1722529423544,273.37336231,9.9e-05,2]
[333819780,1722529431470,273.37336231,9.9e-05,2]
[333819781,1722529439693,273.37336231,9.9e-05,2]
[333819782,1722529447576,273.37336231,9.9e-05,2]
[333819783,1722529456237,273.37336231,9.9e-05,2]
[333819784,1722529464136,273.37336231,9.9e-05,2]
[333819785,1722529472337,273.37336231,9.9e-05,2]
[333819786,1722529480944,273.37336231,9.9e-05,2]
[333819787,1722529488997,273.37336231,9.9e-05,2]
[333819788,1722529496849,273.37336231,9.9e-05,2]
[333819789,1722529505673,273.37336231,9.9e-05,2]
[333819790,1722529514257,273.37336231,9.9e-05,2]
[333819791,1722529522364,273.37336231,9.9e-05,2]
[333819792,1722529530279,273.37336231,9.9e-05,2]
[333819793,1722529538442,273.37336231,9.9e-05,2]
[333819794,1722529546379,273.37336231,9.9e-05,2]
[333819795,1722529554493,273.37336231,9.9e-05,2]
[333819796,1722529563036,273.37336231,9.9e-05,2]
[333819797,1722529571213,273.37336231,9.9e-05,2]
[333819798,1722529579777,273.37336231,9.9e-05,2]
[333819799,1722529587824,273.37336231,9.9e-05,2]
[333819800,1722529596410,273.37336231,9.9e-05,2]
[333819801,1722529604588,273.37336231,9.9e-05,2]
[333819802,1722529612477,273.37336231,9.9e-05,2]
[333819803,1722529620687,273.37336231,9.9e-05,2]
[333819804,1722529628505,273.37336231,9.9e-05,2]
[333819805,1722529636774,273.37336231,9.9e-05,2]
[333819807,1722529645380,273.37336231,9.9e-05,2]
[333819808,1722529653469,273.37336231,9.9e-05,2]
[333819809,1722529661565,273.37336231,9.9e-05,2]
[333819810,1722529670206,273.37336231,9.9e-05,2]
[333819812,1722529678018,273.37336231,9.9e-05,2]
[333819815,1722529686250,273.37336231,9.9e-05,2]
[333819816,1722529693946,273.37336231,9.9e-05,2]
[333819817,1722529702728,273.37336231,9.9e-05,2]
[333819819,1722529710726,273.37336231,9.9e-05,2]
[333819821,1722529718973,273.37336231,9.9e-05,2]
[333819822,1722529726069,6863.88579021,0.00023,120]
[333819823,1722529726114,884.73810837,9.999e-05,2]
[333819824,1722529726861,273.37336231,9.9e-05,2]
[333819825,1722529735740,273.37336231,9.9e-05,2]
[333819827,1722529744878,273.37336231,9.9e-05,2]
[333819828,1722529753601,273.37336231,9.9e-05,2]
[333819829,1722529754186,-166.457275,0.00010959,2]
[333819830,1722529754208,-300.0,0.00011071,2]
[333819831,1722529754230,-300.0,0.00011071,2]
[333819832,1722529754252,-18770.992118,0.00011072,2]
[333819834,1722529761406,273.37336231,9.9e-05,2]
[333819835,1722529766185,-24900.0,0.00011033,2]
[333819836,1722529766209,-158.845471,0.00011105,2]
[333819837,1722529766232,-158.845471,0.00011221,2]
[333819838,1722529766254,-158.845471,0.00011337,2]
[333819839,1722529766275,-158.845471,0.00011453,2]
[333819840,1722529766295,-158.845471,0.00011568,2]
[333819841,1722529766317,-158.845471,0.00011684,2]
[333819842,1722529766337,-191.56606571,0.00011793,2]
[333819843,1722529766357,-978.84442011,0.000119,2]
[333819844,1722529766378,-250.17273888,0.00012,2]
[333819845,1722529766401,-469.45398712,0.00012,2]
[333819846,1722529766422,-420.0,0.00012164,2]
[333819847,1722529766442,-420.0,0.00012178,2]
[333819848,1722529766462,-166.457275,0.00012314,2]
[333819849,1722529766483,-3167.63013987,0.000129,2]
[333819850,1722529766505,-3879.78473842,0.000129,2]
[333819851,1722529766625,-169.184526,0.00012986,2]
[333819852,1722529766647,-1000.0,0.00013,13]
[333819853,1722529766668,-150.112233,0.00013,2]
[333819854,1722529766690,-4252.4298567,0.00013,2]
[333819855,1722529767214,-36886.95246175,0.00013,2]
[333819856,1722529767264,-36349.46028024,0.00013,2]
[333819857,1722529767286,-3167.63013984,0.00013075,2]
[333819858,1722529767307,-3167.63013984,0.00013249,2]
[333819859,1722529767328,-587.0,0.00013395,2]
[333819860,1722529767350,-3167.63013984,0.00013424,2]
[333819861,1722529767372,-753.15,0.00013424,2]
[333819862,1722529767396,-753.15,0.00013424,2]
[333819863,1722529767417,-753.15,0.00013424,2]
[333819864,1722529767439,-753.15,0.00013578,2]
[333819865,1722529767462,-753.15,0.00013578,2]
[333819866,1722529767485,-753.15,0.00013578,2]
[333819867,1722529767506,-49624.31903777,0.00013588,2]
[333819868,1722529767528,-50635.6234821,0.00013588,2]
[333819869,1722529767550,-2000.0,0.00013588,2]
[333819870,1722529767572,-588.2238741,0.00013589,2]
[333819871,1722529767593,-1116.21827773,0.00013598,2]
[333819872,1722529768150,-1277.89780692,0.00013598,2]
[333819873,1722529769596,273.37336231,9.9e-05,2]
[333819874,1722529770180,-379.27100354,0.00013598,2]
[333819875,1722529770203,-3167.63013984,0.00013598,2]
[333819876,1722529770225,-150.112233,0.000136,2]
[333819877,1722529770248,-6046.45570522,0.00013655,2]
[333819878,1722529770270,-8819.83119168,0.00013678,2]
[333819879,1722529770298,-41815.79229042,0.00013678,2]
[333819880,1722529770318,-2038.57531903,0.00013686,2]
[333819882,1722529773132,-15559.67883704,0.00013686,2]
[333819883,1722529777846,273.37336231,9.9e-05,2]
[333819884,1722529786567,273.37336231,9.9e-05,2]
[333819885,1722529794470,273.37336231,9.9e-05,2]
[333819886,1722529802857,273.37336231,9.9e-05,2]
[333819887,1722529810662,273.37336231,9.9e-05,2]
[333819888,1722529818756,273.37336231,9.9e-05,2]
[333819889,1722529826627,273.37336231,9.9e-05,2]
[333819930,1722529835576,273.37336231,9.9e-05,2]
[333819939,1722529838739,-300.0,0.00013685,2]
[333819940,1722529838755,-25590.44087794,0.00013686,2]
[333819942,1722529838773,-114814.57784547,0.00013686,2]
[333819944,1722529838789,-753.15,0.00013687,2]
[333819946,1722529838803,-753.15,0.00013687,2]
[333819950,1722529838818,-21019.98109936,0.00013688,2]
[333819953,1722529838833,-202542.493928,0.00013688,2]
[333819956,1722529838846,-753.15,0.00013697,2]
[333819959,1722529838861,-753.15,0.00013697,2]
[333819963,1722529838876,-753.15,0.00013697,2]
[333819966,1722529838890,-753.15,0.00013697,2]
[333819969,1722529838903,-753.15,0.00013697,2]
[333819972,1722529838916,-753.15,0.00013697,2]
[333819975,1722529838930,-24590.17321605,0.00013698,5]
[333819979,1722529838944,-500.0,0.00013698,2]
[333819982,1722529838956,-500.0,0.00013698,2]
[333819984,1722529838968,-167.29886717,0.00013698,2]
[333819987,1722529838981,-500.0,0.00013698,2]
[333819991,1722529838993,-269.79335966,0.00013698,2]
[333819994,1722529839007,-500.0,0.00013698,2]
[333819997,1722529839025,-240.02557966,0.00013698,2]
[333820000,1722529839044,-500.0,0.00013698,2]
[333820004,1722529839066,-500.0,0.00013698,2]
[333820008,1722529839100,-500.0,0.00013698,2]
[333820009,1722529839119,-500.0,0.00013698,2]
[333820010,1722529839139,-279.84535254,0.00013698,2]
[333820012,1722529839161,-500.0,0.00013698,2]
[333820014,1722529839182,-500.0,0.00013698,2]
[333820016,1722529839204,-500.0,0.00013698,2]
[333820019,1722529839226,-230.58862984,0.00013698,2]
[333820021,1722529839243,-500.0,0.00013698,2]
[333820023,1722529839255,-500.0,0.00013698,2]
[333820025,1722529839270,-500.0,0.00013698,2]
[333820027,1722529839284,-500.0,0.00013698,2]
[333820030,1722529839298,-500.0,0.00013698,2]
[333820032,1722529839310,-500.0,0.00013698,2]
[333820034,1722529839321,-500.0,0.00013698,2]
[333820036,1722529839332,-162.0,0.00013698,2]
[333820039,1722529839347,-500.0,0.00013698,2]
[333820041,1722529839364,-500.0,0.00013698,2]
[333820044,1722529839378,-500.0,0.00013698,2]
[333820046,1722529839391,-500.0,0.00013698,2]
[333820049,1722529839405,-500.0,0.00013698,2]
[333820050,1722529839417,-500.0,0.00013698,2]
[333820051,1722529839429,-504.02155593,0.00013698,2]
[333820052,1722529839442,-500.0,0.00013698,2]
[333820053,1722529839453,-500.0,0.00013698,2]
[333820054,1722529839467,-614.74755836,0.00013698,2]
[333820055,1722529839479,-500.0,0.00013698,2]
[333820057,1722529839491,-500.0,0.00013698,2]
[333820058,1722529839503,-500.0,0.00013698,2]
[333820059,1722529839515,-500.0,0.00013698,2]
[333820060,1722529839527,-500.0,0.00013698,2]
[333820061,1722529839539,-500.0,0.00013698,2]
[333820063,1722529839551,-500.0,0.00013698,2]
[333820066,1722529839562,-273.8367479,0.00013698,2]
[333820069,1722529839575,-500.0,0.00013698,2]
[333820071,1722529839586,-509.09080361,0.00013698,2]
[333820073,1722529839598,-500.0,0.00013698,2]
[333820075,1722529839609,-500.0,0.00013698,2]
[333820079,1722529839621,-500.0,0.00013698,2]
[333820082,1722529839633,-500.0,0.00013698,2]
[333820085,1722529839644,-600.0,0.00013698,2]
[333820088,1722529839655,-500.0,0.00013698,2]
[333820091,1722529839667,-500.0,0.00013698,2]
[333820095,1722529839678,-500.0,0.00013698,2]
[333820099,1722529839690,-300.0,0.00013698,2]
[333820102,1722529839702,-500.0,0.00013698,2]
[333820104,1722529839714,-500.0,0.00013698,2]
[333820107,1722529839726,-500.0,0.00013698,2]
[333820111,1722529839737,-500.0,0.00013698,2]
[333820114,1722529839749,-583.17618753,0.00013698,2]
[333820117,1722529839761,-615.73239655,0.00013698,2]
[333820121,1722529839773,-500.0,0.00013698,2]
[333820126,1722529839784,-243.20500918,0.00013698,2]
[333820128,1722529839797,-500.0,0.00013698,2]
[333820130,1722529839808,-500.0,0.00013698,2]
[333820132,1722529839819,-500.0,0.00013698,2]
[333820134,1722529839831,-500.0,0.00013698,2]
[333820136,1722529839842,-500.0,0.00013698,2]
[333820138,1722529839854,-500.0,0.00013698,2]
[333820139,1722529839866,-500.0,0.00013698,2]
[333820142,1722529839882,-500.0,0.00013698,2]
[333820145,1722529839894,-173.0145936,0.00013698,2]
[333820147,1722529839907,-500.0,0.00013698,2]
[333820150,1722529839918,-162.81818846,0.00013698,2]
[333820167,1722529840070,-500.0,0.00013698,2]
[333820169,1722529840086,-451.62531356,0.00013698,2]
[333820171,1722529840096,-500.0,0.00013698,2]
[333820172,1722529840106,-500.0,0.00013698,2]
[333820174,1722529840115,-500.0,0.00013698,2]
[333820176,1722529840125,-500.0,0.00013698,2]
[333820178,1722529840134,-500.0,0.00013698,2]
[333820179,1722529840144,-500.0,0.00013698,2]
[333820181,1722529840153,-500.0,0.00013698,2]